bitfinex-derivatives/quotes_SOLF0:USTF0_20241203
["timestamp","ask_amount","ask_price","bid_price","bid_amount"]
[1733230245485,45.6258807,224.88,224.78,8.03182908]
[1733230245679,8.03182908,224.86,224.78,8.03182908]
[1733230246083,8.03182908,224.86,224.78,10.25602908]
[1733230246285,2.12,224.87,224.75,1.3241]
[1733230246286,8.03182908,224.84,224.75,1.3241]
[1733230246484,8.03182908,224.82,224.74,2.12]
[1733230246783,8.03182908,224.8,224.74,2.12]
[1733230246987,8.03182908,224.78,224.71,2.12]
[1733230247286,8.03182908,224.76,224.69,1.2891]
[1733230247587,8.03182908,224.76,224.69,3.4091]
[1733230247788,2.2247,224.73,224.69,1.2891]
[1733230247983,8.03182908,224.74,224.68,10.66752908]
[1733230248288,2.12,224.8,224.59,1.2891]
[1733230248289,8.03182908,224.72,224.59,1.2891]
[1733230248491,8.03182908,224.72,224.64,12.37732908]
[1733230248492,2.2252,224.69,224.64,12.37732908]
[1733230248787,2.6619,224.79,224.63,2.12]
[1733230248788,8.03182908,224.68,224.63,2.12]
[1733230248989,8.03182908,224.68,224.61,8.03182908]
[1733230249386,2.2256,224.65,224.59,3.9881]
[1733230249588,2.2256,224.65,224.6,8.03182908]
[1733230249890,8.03182908,224.68,224.6,8.03182908]
[1733230250283,2.2253,224.68,224.61,2.2259]
[1733230250489,2.2253,224.68,224.62,8.03182908]
[1733230250689,8.03182908,224.69,224.62,8.03182908]
[1733230251985,10.25692908,224.69,224.62,10.25762908]
[1733230252989,10.25692908,224.69,224.62,2.2258]
[1733230253286,10.25692908,224.69,224.59,6.1081]
[1733230253287,2.2252,224.68,224.61,10.25772908]
[1733230253684,2.2252,224.68,224.61,8.03182908]
[1733230254491,10.25692908,224.69,224.62,2.2257]
[1733230254786,8.03182908,224.67,224.6,8.03182908]
[1733230255286,10.25722908,224.67,224.61,2.2259]
[1733230255588,10.25722908,224.67,224.6,8.03182908]
[1733230255792,2.2254,224.67,224.6,8.03182908]
[1733230256586,2.2257,224.64,224.59,5.6684]
[1733230256793,8.03182908,224.64,224.57,8.03182908]
[1733230256992,8.03182908,224.64,224.57,2.12]
[1733230257189,1.3378,224.7,224.58,8.03182908]
[1733230257393,8.03182908,224.65,224.58,8.03182908]
[1733230258387,10.25742908,224.65,224.58,10.25802908]
[1733230258587,8.03182908,224.65,224.58,8.03182908]
[1733230258787,8.03182908,224.65,224.57,2.12]
[1733230258989,8.03182908,224.65,224.57,10.15182908]
[1733230259794,2.2259,224.62,224.57,2.2263]
[1733230259995,8.03182908,224.63,224.56,10.15182908]
[1733230260492,2.2258,224.62,224.56,12.37812908]
[1733230260691,8.03182908,224.63,224.56,12.37812908]
[1733230260890,8.03182908,224.63,224.56,2.12]
[1733230261091,8.03182908,224.61,224.56,2.12]
[1733230261298,8.03182908,224.61,224.55,2.12]
[1733230262097,2.2262,224.58,224.53,8.03182908]
[1733230262394,8.03182908,224.59,224.53,10.15182908]
[1733230262593,10.25802908,224.59,224.53,12.37842908]
[1733230262800,10.25802908,224.59,224.53,8.03182908]
[1733230262990,10.25802908,224.59,224.53,10.15182908]
[1733230263194,8.03182908,224.59,224.53,10.15182908]
[1733230263497,8.03182908,224.61,224.53,10.15182908]
[1733230263799,2.2262,224.59,224.54,2.2266]
[1733230263996,8.03182908,224.59,224.29,13.35]
[1733230264190,2.24762668,224.69,224.26,193.0]
[1733230264191,8.03182908,224.55,224.44,1.3466]
[1733230264392,2.2268,224.52,224.48,2.2272]
[1733230265998,2.12,224.58,224.47,8.03182908]
[1733230266198,8.03182908,224.58,224.51,8.03182908]
[1733230266397,2.226,224.6,224.55,8.03182908]
[1733230266599,8.03182908,224.64,224.55,8.03182908]
[1733230266792,2.12,224.67,224.57,8.03182908]
[1733230266997,8.03182908,224.64,224.57,8.03182908]
[1733230268000,2.2257,224.63,224.58,2.2261]
[1733230268597,2.2255,224.66,224.6,2.226]
[1733230268903,8.03182908,224.69,224.63,8.03182908]
[1733230269707,8.03182908,224.67,224.6,2.12]
[1733230270200,8.03182908,224.67,224.61,8.03182908]
[1733230271003,10.25722908,224.67,224.61,10.25772908]
[1733230272005,2.2254,224.66,224.61,10.25772908]
[1733230272303,8.03182908,224.67,224.6,2.12]
[1733230272701,2.2256,224.65,224.6,2.12]
[1733230273003,8.03182908,224.67,224.6,2.12]
[1733230273205,8.03182908,224.61,224.56,2.12]
[1733230273406,8.03182908,224.61,224.51,1.2877]
[1733230273704,8.03182908,224.61,224.53,8.03182908]
[1733230274101,8.03182908,224.59,224.51,1.2877]
[1733230274309,8.03182908,224.59,224.52,10.15182908]
[1733230274600,8.03182908,224.57,224.45,58.7835723]
[1733230274804,2.12,224.62,224.46,2.12]
[1733230274805,8.03182908,224.53,224.46,2.12]
[1733230275103,8.03182908,224.53,224.46,10.15182908]
[1733230275296,2.2269,224.52,224.47,2.2273]
[1733230275496,2.2269,224.52,224.46,10.15182908]
[1733230275797,2.2271,224.5,224.45,61.0110723]
[1733230276000,2.2271,224.5,224.41,12.58290883]
[1733230276001,12.58290883,224.52,224.41,14.70290883]
[1733230276907,2.2273,224.47,224.42,2.12]
[1733230277304,14.70290883,224.52,224.42,2.12]
[1733230277501,2.2275,224.46,224.39,4.3481]
[1733230278204,14.70290883,224.52,224.39,2.12]
[1733230278403,12.58290883,224.49,224.38,2.12]
[1733230279206,2.2274,224.46,224.38,2.12]
[1733230279404,12.58290883,224.49,224.38,2.12]
[1733230279910,2.12,224.5,224.38,14.70290883]
[1733230280109,12.58290883,224.52,224.38,14.70290883]
[1733230280411,1.2671,224.6,224.41,12.58290883]
[1733230280412,12.58290883,224.55,224.41,12.58290883]
[1733230280611,14.70290883,224.55,224.41,12.58290883]
[1733230280808,2.2268,224.52,224.44,2.2276]
[1733230281104,2.2268,224.52,224.45,2.12]
[1733230281300,12.58290883,224.58,224.5,2.227]
[1733230281504,1.2671,224.6,224.5,2.227]
[1733230281703,15.22570883,224.61,224.51,2.12]
[1733230282006,2.226,224.6,224.51,2.12]
[1733230282305,2.12,224.63,224.51,2.12]
[1733230282509,2.2261,224.59,224.53,2.2267]
[1733230282710,2.2261,224.59,224.51,2.12]
[1733230282910,2.2261,224.59,224.52,2.2268]
[1733230284811,2.2262,224.58,224.52,2.2268]
[1733230285606,12.58290883,224.61,224.47,12.58290883]
[1733230285607,2.2265,224.56,224.47,12.58290883]
[1733230285809,12.58290883,224.61,224.48,2.12]
[1733230286805,2.2266,224.54,224.48,2.12]
[1733230287010,12.58290883,224.58,224.48,2.12]
[1733230287307,12.58290883,224.58,224.48,4.3472]
[1733230287706,12.58290883,224.58,224.48,2.12]
[1733230288215,12.58290883,224.55,224.45,2.12]
[1733230288413,12.58290883,224.55,224.41,40.54763923]
[1733230288812,12.58290883,224.55,224.42,2.12]
[1733230289519,12.58290883,224.55,224.43,2.12]
[1733230290405,2.227,224.5,224.44,2.2276]
[1733230291915,2.2273,224.48,224.43,2.12]
[1733230292114,2.12,224.57,224.41,40.54763923]
[1733230292115,12.58290883,224.52,224.41,40.54763923]
[1733230292418,12.58290883,224.49,224.41,42.66763923]
[1733230292619,2.2276,224.44,224.41,2.12]
[1733230294320,12.58290883,224.46,224.39,0.26065]
[1733230294718,2.228,224.4,224.39,0.26065]
[1733230296409,14.81090883,224.4,224.39,0.26065]
[1733230296617,2.2284,224.36,224.32,2.12]
[1733230296817,12.58290883,224.4,224.29,4.3491]
[1733230297315,2.2283,224.37,224.29,4.3491]
[1733230297515,12.58290883,224.4,224.29,2.12]
[1733230298125,2.2286,224.35,224.29,2.12]
[1733230298322,12.58290883,224.4,224.29,2.12]
[1733230298513,12.58290883,224.37,224.29,2.12]
[1733230298718,2.229,224.31,224.24,2.2296]
[1733230298917,2.229,224.31,224.22,13.93030883]
[1733230299218,12.58290883,224.34,224.22,13.93030883]
[1733230299419,2.229,224.3,224.22,13.93030883]
[1733230299620,12.58290883,224.34,224.22,13.93030883]
[1733230300020,2.2292,224.29,224.23,2.2297]
[1733230300215,2.2292,224.29,224.22,13.93030883]
[1733230300521,2.2292,224.29,224.24,2.2296]
[1733230301317,2.2292,224.28,224.23,2.2297]
[1733230301824,12.58290883,224.34,224.2,2.23]
[1733230301825,2.2295,224.25,224.2,2.23]
[1733230302023,2.2295,224.25,224.19,2.6507]
[1733230303119,2.2295,224.25,224.2,2.23]
[1733230303418,12.58290883,224.31,224.19,2.6507]
[1733230304018,12.58290883,224.31,224.2,2.23]
[1733230304316,12.58290883,224.31,224.19,2.6507]
[1733230305119,2.2293,224.28,224.22,2.2298]
[1733230305315,12.58290883,224.31,224.22,2.2298]
[1733230305625,2.12,224.35,224.22,14.70290883]
[1733230305821,12.58290883,224.37,224.25,12.58290883]
[1733230306024,2.12,224.37,224.25,12.58290883]
[1733230306224,2.12,224.37,224.27,2.2293]
[1733230306424,2.12,224.37,224.25,12.58290883]
[1733230306817,2.2285,224.35,224.29,2.229]
[1733230307124,2.2285,224.35,224.28,2.12]
[1733230307724,2.2284,224.37,224.31,2.2289]
[1733230307924,2.12,224.42,224.28,14.70290883]
[1733230308126,2.12,224.42,224.29,2.636]
[1733230308824,2.12,224.42,224.34,2.2286]
[1733230309217,2.12,224.42,224.29,2.636]
[1733230309421,2.2282,224.38,224.32,2.2287]
[1733230309724,2.12,224.42,224.29,2.636]
[1733230309919,12.58290883,224.4,224.29,2.636]
[1733230311623,2.2285,224.35,224.28,2.12]
[1733230311823,14.70290883,224.37,224.28,2.12]
[1733230312029,12.58290883,224.34,224.24,2.12]
[1733230313028,2.2288,224.32,224.26,2.2294]
[1733230313225,12.58290883,224.34,224.24,2.12]
[1733230313728,2.2291,224.3,224.24,4.3496]
[1733230313923,12.58290883,224.34,224.24,2.2296]
[1733230314131,12.58290883,224.34,224.21,4.8335]
[1733230314527,2.2292,224.29,224.22,2.2298]
[1733230314725,12.58290883,224.34,224.22,2.2298]
[1733230315126,2.2293,224.28,224.22,2.2298]
[1733230315324,12.58290883,224.31,224.22,2.2298]
[1733230315727,12.58290883,224.31,224.23,2.2297]
[1733230315728,2.2292,224.28,224.23,2.2297]
[1733230318030,12.58290883,224.31,224.23,2.2297]
[1733230318333,12.58290883,224.31,224.24,2.2295]
[1733230318731,12.58290883,224.31,224.21,4.8335]
[1733230318934,12.58290883,224.34,224.21,4.8335]
[1733230319235,2.229,224.31,224.21,4.8335]
[1733230319435,2.6679,224.36,224.22,12.58290883]
[1733230319732,12.58290883,224.37,224.22,12.58290883]
[1733230319923,2.2288,224.33,224.28,2.2291]
[1733230320127,12.58290883,224.37,224.26,2.12]
[1733230320328,2.12,224.38,224.26,2.12]
[1733230320528,2.2287,224.34,224.26,2.12]
[1733230321028,2.2287,224.34,224.3,2.2289]
[1733230321835,12.58290883,224.36,224.26,4.3493]
[1733230322332,12.58290883,224.36,224.27,2.2292]
[1733230322333,2.2288,224.32,224.27,2.2292]
[1733230322535,12.58290883,224.36,224.26,2.12]
[1733230322728,2.2289,224.32,224.27,2.2293]
[1733230323229,2.12,224.38,224.26,2.12]
[1733230323429,12.58290883,224.39,224.26,2.12]
[1733230323634,14.70290883,224.39,224.26,2.12]
[1733230323831,14.70290883,224.39,224.34,2.2285]
[1733230323832,2.2282,224.38,224.34,2.2285]
[1733230324033,12.58290883,224.42,224.31,2.12]
[1733230324427,12.58290883,224.42,224.34,2.2286]
[1733230325626,12.58290883,224.42,224.35,2.2285]
[1733230325830,2.2281,224.4,224.31,2.12]
[1733230326231,12.58290883,224.42,224.34,2.2285]
[1733230326539,2.2281,224.39,224.31,2.12]
[1733230327936,2.2283,224.37,224.31,2.12]
[1733230328133,12.58290883,224.42,224.31,2.12]
[1733230328331,12.58290883,224.42,224.34,2.2285]
[1733230328531,2.228,224.4,224.34,2.2285]
[1733230328728,12.58290883,224.42,224.31,2.12]
[1733230329629,12.58290883,224.39,224.29,1.3402]
[1733230329834,12.58290883,224.39,224.3,2.12]
[1733230330034,14.70290883,224.39,224.3,2.12]
[1733230330238,2.2289,224.32,224.28,2.2292]
[1733230330439,12.58290883,224.36,224.24,2.12]
[1733230330736,2.2293,224.27,224.22,3.5699]
[1733230330934,12.58290883,224.3,224.22,2.2297]
[1733230331740,2.12,224.32,224.19,14.70290883]
[1733230332340,12.58290883,224.33,224.25,2.2294]
[1733230332939,12.58290883,224.33,224.24,2.12]
[1733230333139,2.2289,224.32,224.24,2.12]
[1733230333334,2.12,224.36,224.24,2.12]
[1733230333335,12.58290883,224.36,224.24,2.12]
[1733230333542,2.2284,224.36,224.3,2.2289]
[1733230333741,14.70290883,224.39,224.3,2.2289]
[1733230334043,14.70290883,224.39,224.29,2.12]
[1733230335243,14.70290883,224.39,224.25,15.24390883]
[1733230335244,2.229,224.31,224.25,4.8904]
[1733230335640,12.58290883,224.36,224.25,4.8904]
[1733230335948,2.229,224.3,224.25,2.2294]
[1733230337143,2.2291,224.29,224.25,2.2294]
[1733230337343,12.58290883,224.33,224.24,2.12]
[1733230337948,12.58290883,224.36,224.24,2.12]
[1733230338244,2.2288,224.32,224.24,2.12]
[1733230338448,2.2288,224.32,224.28,2.2292]
[1733230338946,12.58290883,224.36,224.28,2.2292]
[1733230339145,2.2287,224.33,224.28,2.2292]
[1733230340256,12.58290883,224.36,224.24,2.12]
[1733230341550,12.58290883,224.39,224.25,12.58290883]
[1733230341856,12.58290883,224.39,224.26,1.3012]
[1733230342050,2.2286,224.35,224.3,2.2289]
[1733230342354,12.58290883,224.39,224.3,2.2289]
[1733230342555,2.2287,224.33,224.28,2.2291]
[1733230343152,12.58290883,224.39,224.29,2.12]
[1733230343359,14.70290883,224.42,224.29,2.12]
[1733230343850,12.58290883,224.42,224.29,2.12]
[1733230344051,2.6607,224.43,224.31,12.58290883]
[1733230344552,2.2281,224.4,224.35,2.2284]
[1733230344859,2.6607,224.43,224.35,2.2284]
[1733230345556,2.2281,224.4,224.35,2.2284]
[1733230346165,2.2281,224.4,224.36,2.2284]
[1733230346459,12.58290883,224.45,224.34,2.12]
[1733230346659,12.58290883,224.48,224.34,14.70290883]
[1733230347364,12.58290883,224.48,224.37,2.2282]
[1733230347556,12.58290883,224.45,224.31,12.58290883]
[1733230347752,2.228,224.4,224.35,4.3485]
[1733230348357,2.2281,224.39,224.35,2.12]
[1733230349563,2.228,224.4,224.35,4.3484]
[1733230349754,12.58290883,224.45,224.35,2.12]
[1733230350157,2.2278,224.42,224.37,2.2282]
[1733230350463,12.58290883,224.45,224.35,2.12]
[1733230350963,2.2278,224.42,224.37,2.2282]
[1733230351164,12.58290883,224.45,224.37,2.2282]
[1733230351566,12.58290883,224.45,224.36,2.2282]
[1733230351969,2.2277,224.42,224.35,2.12]
[1733230352366,12.58290883,224.45,224.35,2.12]
[1733230352667,4.813,224.49,224.38,2.2279]
[1733230352668,2.2275,224.43,224.38,2.2279]
[1733230353561,12.58290883,224.48,224.38,2.2279]
[1733230353763,4.813,224.49,224.35,2.12]
[1733230353764,12.58290883,224.45,224.35,2.12]
[1733230354366,2.2281,224.39,224.35,4.3484]
[1733230355266,2.2283,224.36,224.31,2.12]
[1733230355463,2.12,224.43,224.31,2.12]
[1733230355660,12.58290883,224.42,224.31,2.12]
[1733230355863,2.2283,224.36,224.31,4.3487]
[1733230356267,12.58290883,224.42,224.31,4.3488]
[1733230356661,12.58290883,224.42,224.31,2.12]
[1733230357266,2.2281,224.39,224.32,2.2287]
[1733230357463,12.58290883,224.42,224.32,2.2287]
[1733230359171,2.2283,224.37,224.32,2.2287]
[1733230360272,12.58290883,224.42,224.31,4.3488]
[1733230360475,12.58290883,224.36,224.31,2.12]
[1733230360668,2.2288,224.32,224.27,1.314]
[1733230360868,12.58290883,224.36,224.27,2.12]
[1733230361273,2.12,224.38,224.27,2.12]
[1733230361669,12.58290883,224.39,224.27,2.12]
[1733230361874,2.12,224.42,224.31,2.2287]
[1733230361875,2.2281,224.38,224.31,2.2287]
[1733230362174,12.58290883,224.42,224.32,2.12]
[1733230362365,2.2279,224.39,224.33,2.2285]
[1733230362566,12.58290883,224.42,224.32,2.12]
[1733230362771,2.12,224.46,224.32,2.12]
[1733230362772,12.58290883,224.45,224.32,2.12]
[1733230362970,2.2278,224.41,224.35,2.2283]
[1733230363771,2.2278,224.41,224.32,2.12]
[1733230363975,2.2278,224.41,224.32,4.8087]
[1733230364172,12.58290883,224.45,224.32,4.8087]
[1733230364372,2.228,224.39,224.33,2.2285]
[1733230364574,2.228,224.39,224.32,4.8087]
[1733230364967,2.228,224.39,224.35,2.2283]
[1733230365168,12.58290883,224.45,224.32,4.8087]
[1733230365573,12.58290883,224.45,224.33,2.2285]
[1733230366073,12.58290883,224.45,224.32,4.8087]
[1733230366278,12.58290883,224.45,224.34,2.2284]
[1733230366475,14.70290883,224.48,224.32,4.8087]
[1733230366675,14.70290883,224.48,224.37,2.2281]
[1733230366676,12.58290883,224.48,224.37,2.2281]
[1733230366874,12.58290883,224.48,224.38,2.12]
[1733230367178,306.8825488,224.57,224.39,2.2279]
[1733230367179,14.70290883,224.51,224.39,2.2279]
[1733230367676,2.2272,224.47,224.41,2.2277]
[1733230367879,2.2272,224.47,224.38,3.4621]
[1733230368083,12.58290883,224.51,224.38,3.4621]
[1733230368480,12.58290883,224.51,224.39,2.2279]
[1733230368983,12.58290883,224.51,224.39,2.228]
[1733230369180,12.58290883,224.51,224.38,3.4621]
[1733230369783,2.2275,224.45,224.38,5.6901]
[1733230369985,12.58290883,224.51,224.38,5.6901]
[1733230370182,12.58290883,224.51,224.38,3.4621]
[1733230370484,2.2275,224.44,224.39,2.228]
[1733230371577,2.2276,224.43,224.39,2.228]
[1733230372379,12.58290883,224.51,224.39,2.228]
[1733230372380,2.2277,224.42,224.39,2.228]
[1733230373179,2.2277,224.42,224.38,3.4621]
[1733230373384,2.2277,224.42,224.38,5.6901]
[1733230373788,12.58290883,224.51,224.38,3.4621]
[1733230373988,2.2279,224.4,224.38,3.4621]
[1733230374385,12.58290883,224.51,224.38,3.4621]
[1733230374687,2.2278,224.41,224.38,3.4621]
[1733230375282,2.2278,224.41,224.38,1.3421]
[1733230375488,2.2278,224.41,224.39,2.12]
[1733230375689,12.58290883,224.51,224.39,2.12]
[1733230375988,2.2279,224.4,224.39,2.12]
[1733230377488,12.58290883,224.51,224.39,2.12]
[1733230377893,7.1361,224.55,224.39,2.12]
[1733230378085,2.2274,224.45,224.4,12.58290883]
[1733230378392,12.58290883,224.54,224.4,12.58290883]
[1733230378690,12.58290883,224.54,224.4,14.81080883]
[1733230378891,9.2561,224.55,224.39,2.12]
[1733230378892,12.58290883,224.51,224.39,2.12]
[1733230379784,2.2277,224.43,224.39,2.12]
[1733230380181,12.58290883,224.51,224.39,2.12]
[1733230380692,12.58290883,224.51,224.4,2.2279]
[1733230381189,12.58290883,224.51,224.41,2.12]
[1733230381589,2.2271,224.48,224.41,2.12]
[1733230381790,12.58290883,224.51,224.41,2.12]
[1733230383193,2.2277,224.42,224.41,2.12]
[1733230383991,2.2277,224.42,224.34,12.58290883]
[1733230383992,2.2281,224.39,224.37,2.12]
[1733230384286,12.58290883,224.48,224.37,2.12]
[1733230384697,2.228,224.4,224.37,2.12]
[1733230385287,2.228,224.4,224.38,2.12]
[1733230385493,2.228,224.39,224.38,2.12]
[1733230387995,12.58290883,224.45,224.33,1.2776]
[1733230388192,2.2283,224.36,224.34,2.12]
[1733230388792,2.2285,224.34,224.31,2.2288]
[1733230388988,2.2285,224.34,224.32,2.12]
[1733230390097,2.2283,224.37,224.32,2.12]
[1733230390290,4.785,224.44,224.32,2.12]
[1733230390597,2.228,224.39,224.32,2.12]
[1733230391295,2.228,224.39,224.33,2.2286]
[1733230391993,4.785,224.44,224.33,2.2286]
[1733230393196,2.2281,224.39,224.33,2.2286]
[1733230393505,2.2281,224.39,224.34,2.2284]
[1733230394395,2.2284,224.35,224.32,2.12]
[1733230394794,12.58290883,224.42,224.32,2.12]
[1733230394991,2.2285,224.34,224.32,2.12]
[1733230396194,2.2287,224.32,224.28,2.2291]
[1733230396396,2.2287,224.32,224.3,2.12]
[1733230396601,12.58290883,224.36,224.29,0.15963]
[1733230396995,2.12,224.39,224.29,0.15963]
[1733230396996,2.2289,224.3,224.29,0.15963]
[1733230398598,2.2289,224.3,224.24,4.3494]
[1733230399403,2.229,224.29,224.24,2.12]
[1733230399601,2.12,224.34,224.24,2.12]
[1733230401606,12.58290883,224.35,224.24,2.12]
[1733230401808,12.58290883,224.38,224.25,12.58290883]
[1733230402006,2.2285,224.34,224.28,2.2291]
[1733230402404,2.2285,224.34,224.29,2.12]
[1733230402602,12.58290883,224.38,224.29,2.12]
[1733230404107,2.2288,224.32,224.29,2.12]
[1733230404509,12.58290883,224.35,224.22,12.58290883]
[1733230404705,12.58290883,224.35,224.23,4.3496]
[1733230404706,2.2291,224.29,224.23,4.3496]
[1733230404907,12.58290883,224.35,224.23,4.3496]
[1733230405408,12.58290883,224.32,224.23,2.12]
[1733230406205,2.2293,224.26,224.23,2.12]
[1733230406909,2.2294,224.25,224.2,2.46371]
[1733230407207,12.58290883,224.32,224.21,2.12]
[1733230407506,12.58290883,224.29,224.2,0.23381]
[1733230407705,12.58290883,224.26,224.2,0.23381]
[1733230407906,12.58290883,224.23,224.2,0.23381]
[1733230408607,2.2298,224.21,224.2,0.23381]
[1733230414914,2.2298,224.21,224.13,4.3505]
[1733230414915,12.58290883,224.23,224.13,4.3505]
[1733230415114,2.23,224.19,224.13,2.12]
[1733230415716,2.23,224.18,224.13,2.12]
[1733230416213,12.58290883,224.23,224.13,2.12]
[1733230418419,2.2301,224.18,224.13,4.3505]
[1733230418614,2.2301,224.18,224.13,2.12]
[1733230419715,2.2301,224.18,224.13,10.1967954]
[1733230419916,8.0767954,224.2,224.13,2.12]
[1733230420116,2.2303,224.16,224.13,2.12]
[1733230420316,8.0767954,224.18,224.13,2.12]
[1733230420918,2.2304,224.14,224.13,2.12]
[1733230421816,2.2307,224.12,224.1,2.12]
[1733230423214,2.2307,224.12,224.09,8.0767954]
[1733230423215,8.0767954,224.16,224.09,2.12]
[1733230423518,2.2308,224.1,224.09,2.12]
[1733230423914,8.0767954,224.14,224.06,3.9568]
[1733230424114,8.0767954,224.14,224.07,2.12]
[1733230424115,2.231,224.09,224.07,2.12]
[1733230424719,2.2308,224.1,224.07,2.12]
[1733230425414,2.2307,224.11,224.07,2.12]
[1733230425619,8.0767954,224.16,224.08,8.0767954]
[1733230426421,8.0767954,224.16,224.08,10.3077954]
[1733230426618,2.12,224.19,224.08,8.0767954]
[1733230426820,2.2306,224.13,224.08,2.2309]
[1733230427025,8.0767954,224.16,224.08,10.3076954]
[1733230427423,2.2306,224.13,224.09,2.2309]
[1733230427925,2.2306,224.13,224.08,8.0767954]
[1733230428131,2.2307,224.12,224.08,2.2309]
[1733230428429,2.2307,224.12,224.08,10.3076954]
[1733230429031,8.0767954,224.16,224.08,10.3076954]
[1733230429032,2.2305,224.14,224.1,2.2307]
[1733230429229,8.0767954,224.16,224.1,2.2307]
[1733230429731,8.0767954,224.16,224.09,10.3076954]
[1733230430127,2.2308,224.1,224.07,3.4435]
[1733230430332,8.0767954,224.14,224.07,11.5202954]
[1733230431131,2.2306,224.12,224.08,2.231]
[1733230432132,8.0767954,224.15,224.07,13.7513954]
[1733230432836,2.2308,224.11,224.07,13.7513954]
[1733230433037,2.2308,224.11,224.08,2.231]
[1733230433233,2.2308,224.11,224.08,10.3077954]
[1733230433441,8.0767954,224.15,224.08,8.0767954]
[1733230433629,2.2305,224.13,224.1,2.2308]
[1733230433829,2.2305,224.13,224.08,8.0767954]
[1733230434337,2.2305,224.13,224.09,2.2309]
[1733230434938,2.2305,224.13,224.1,2.2308]
[1733230435339,2.2304,224.14,224.08,8.0767954]
[1733230435640,8.0767954,224.15,224.07,2.12]
[1733230435834,8.0767954,224.15,224.09,8.0767954]
[1733230436148,2.2305,224.14,224.11,2.2307]
[1733230436337,8.0767954,224.15,224.09,8.0767954]
[1733230436634,2.6602,224.24,224.13,8.0767954]
[1733230436839,2.6602,224.24,224.14,2.12]
[1733230437240,8.0767954,224.2,224.14,2.12]
[1733230437930,8.0767954,224.18,224.14,2.12]
[1733230438135,8.0767954,224.18,224.13,2.12]
[1733230439036,8.0767954,224.18,224.14,2.2304]
[1733230439037,10.3068954,224.18,224.14,2.2304]
[1733230439341,2.2301,224.18,224.13,2.12]
[1733230439534,2.9022,224.29,224.16,8.0767954]
[1733230439731,2.9022,224.29,224.13,2.12]
[1733230439732,8.0767954,224.25,224.18,8.0767954]
[1733230439932,2.12,224.29,224.19,2.12]
[1733230440137,2.2292,224.26,224.21,2.2297]
[1733230440330,8.0767954,224.27,224.2,8.0767954]
[1733230440732,8.0767954,224.27,224.22,2.2296]
[1733230441036,0.7822,224.39,224.24,8.0767954]
[1733230441037,2.12,224.35,224.24,8.0767954]
[1733230441338,2.12,224.35,224.25,2.12]
[1733230441536,12.60785779,224.34,224.25,2.12]
[1733230441937,12.60785779,224.34,224.25,4.3493]
[1733230442239,12.60785779,224.34,224.25,2.12]
[1733230442543,12.60785779,224.27,224.14,3.4874]
[1733230442943,2.2297,224.22,224.17,2.2301]
[1733230443246,12.60785779,224.27,224.14,3.4874]
[1733230443745,2.2298,224.21,224.14,3.4874]
[1733230444640,2.2298,224.21,224.16,2.2301]
[1733230444949,12.60785779,224.24,224.14,3.4874]
[1733230446549,2.23,224.19,224.14,3.4874]
[1733230446745,12.60785779,224.24,224.14,3.4874]
[1733230447340,12.60785779,224.24,224.14,2.12]
[1733230447545,12.60785779,224.21,224.09,2.6361]
[1733230447745,12.60785779,224.21,224.13,2.2]
[1733230448546,2.2304,224.16,224.13,2.2]
[1733230448747,12.60785779,224.21,224.13,2.2]
[1733230450846,14.80785779,224.24,224.13,2.2]
[1733230451044,14.80785779,224.24,224.14,2.2305]
[1733230451045,2.23,224.19,224.14,2.2305]
[1733230453842,12.60785779,224.27,224.19,2.23]
[1733230454040,12.60785779,224.27,224.2,2.2]
[1733230454246,2.2296,224.23,224.2,2.2]
[1733230454442,12.60785779,224.27,224.2,2.2]
[1733230454849,2.2297,224.22,224.2,2.2]